fUSD/lending_fUSD_20250522
["ID","MTS","AMOUNT","RATE_DAILY","PERIOD"]
[361994735,1747927847152,-420.0,0.00033148,5]
[361994737,1747927847162,-420.0,0.00033148,5]
[361994739,1747927847172,-420.0,0.00033148,5]
[361994741,1747927847181,-420.0,0.00033148,5]
[361994743,1747927847191,-415.78595385,0.00033148,5]
[361994745,1747927847201,-1265.01764581,0.00033148,5]
[361994747,1747927847213,-2530.86726963,0.00033148,5]
[361994750,1747927847235,-454.0640236,0.00033148,5]
[361994752,1747927847247,-1000.0,0.00033148,5]
[361994755,1747927847258,-695.86046876,0.00033148,5]
[361994859,1747927848289,-2513.09890421,0.00033148,5]
[361994870,1747927848395,-2271.22168799,0.00033148,5]
[361994872,1747927848405,-481.97,0.00033148,5]
[361994874,1747927848416,-420.0,0.00033148,5]
[361994876,1747927848426,-420.0,0.00033148,5]
[361994878,1747927848435,-950.22,0.00033148,5]
[361994880,1747927848445,-420.0,0.00033148,5]
[361994882,1747927848454,-576.57,0.00033148,5]
[361994884,1747927848464,-420.0,0.00033148,5]
[361994886,1747927848478,-420.0,0.00033148,5]
[361994888,1747927848488,-636.13,0.00033148,5]
[361994890,1747927848497,-420.0,0.00033148,5]
[361994892,1747927848507,-420.0,0.00033148,5]
[361994894,1747927848517,-420.0,0.00033148,5]
[361994896,1747927848527,-420.0,0.0003315,5]
[361994898,1747927848537,-678.87,0.0003315,5]
[361994900,1747927848547,-488.23,0.0003315,5]
[361994902,1747927848557,-420.0,0.0003315,5]
[361994904,1747927848567,-420.0,0.0003315,5]
[361994906,1747927848577,-420.0,0.0003315,5]
[361994908,1747927848586,-470.09,0.0003315,5]
[361994910,1747927848596,-420.0,0.0003315,5]
[361994912,1747927848605,-653.77,0.0003315,5]
[361994914,1747927848615,-476.12,0.0003315,5]
[361994916,1747927848625,-373.98384767,0.0003315,5]
[361994918,1747927848634,-420.0,0.0003315,2]
[361994920,1747927848644,-420.0,0.0003315,5]
[361994922,1747927848653,-420.0,0.0003315,5]
[361994924,1747927848662,-493.92533599,0.0003315,5]
[361994926,1747927848675,-87.06466401,0.0003315,5]
[361994928,1747927848684,-524.89,0.0003315,5]
[361994930,1747927848694,-420.0,0.0003315,5]
[361994932,1747927848703,-872.19,0.0003315,5]
[361994934,1747927848714,-420.0,0.0003315,5]
[361994936,1747927848725,-420.0,0.0003315,5]
[361994937,1747927848736,-420.0,0.0003315,5]
[361994939,1747927848746,-420.0,0.0003315,5]
[361994941,1747927848756,-552.99,0.0003315,5]
[361994943,1747927848766,-420.0,0.0003315,5]
[361994945,1747927848775,-420.0,0.0003315,5]
[361994947,1747927848785,-420.0,0.0003315,5]
[361994949,1747927848794,-420.0,0.0003315,5]
[361994951,1747927848805,-420.0,0.0003315,5]
[361994953,1747927848815,-578.82,0.0003315,5]
[361994955,1747927848824,-420.0,0.0003315,5]
[361994957,1747927848834,-420.0,0.0003315,5]
[361994959,1747927848844,-420.0,0.0003315,5]
[361994961,1747927848853,-420.0,0.0003315,5]
[361994963,1747927848862,-420.0,0.0003315,5]
[361994965,1747927848872,-273.56767942,0.0003315,5]
[361994967,1747927848884,-208.09232058,0.0003315,5]
[361994970,1747927848895,-420.0,0.0003315,5]
[361994972,1747927848904,-685.35034913,0.0003315,5]
[361994974,1747927848916,-60.18965087,0.0003315,5]
[361994976,1747927848925,-752.36,0.0003315,5]
[361994978,1747927848937,-286.02998234,0.0003315,5]
[361994980,1747927848948,-133.97001766,0.0003315,5]
[361994982,1747927848960,-592.58,0.0003315,5]
[361994984,1747927848980,-420.0,0.0003315,5]
[361994986,1747927848991,-512.53,0.0003315,5]
[361994988,1747927849001,-420.0,0.0003315,5]
[361994990,1747927849012,-420.0,0.0003315,5]
[361994992,1747927849022,-420.0,0.0003315,5]
[361994993,1747927849031,-420.0,0.0003315,5]
[361994995,1747927849041,-652.83,0.0003315,5]
[361994997,1747927849051,-420.0,0.0003315,5]
[361994999,1747927849061,-456.92,0.0003315,5]
[361995001,1747927849071,-156.63,0.0003315,5]
[361995003,1747927849081,-781.05,0.0003315,5]
[361995005,1747927849091,-420.0,0.0003315,5]
[361995007,1747927849102,-420.0,0.0003315,5]
[361995009,1747927849112,-546.94,0.0003315,5]
[361995011,1747927849122,-800.0,0.0003315,12]
[361995013,1747927849131,-800.0,0.0003315,12]
[361995015,1747927849141,-800.0,0.0003315,12]
[361995017,1747927849151,-800.0,0.0003315,12]
[361995019,1747927849160,-800.0,0.0003315,12]
[361995021,1747927849170,-800.0,0.0003315,12]
[361995023,1747927849180,-800.0,0.0003315,12]
[361995025,1747927849189,-800.0,0.0003315,12]
[361995027,1747927849199,-800.0,0.0003315,12]
[361995029,1747927849209,-800.0,0.0003315,12]
[361995031,1747927849220,-752.64,0.0003315,5]
[361995033,1747927849229,-445.36,0.0003315,5]
[361995035,1747927849239,-420.0,0.0003315,5]
[361995037,1747927849248,-44.13913231,0.0003315,5]
[361995084,1747927850043,-375.86086769,0.0003315,5]
[361995086,1747927850052,-300.0,0.0003315,5]
[361995088,1747927850062,-468.86,0.0003315,5]
[361995090,1747927850071,-520.25,0.0003315,5]
[361995092,1747927850081,-4.96618563,0.0003315,5]
[361995112,1747927850268,-415.03381437,0.0003315,5]
[361995114,1747927850278,-70.27118563,0.0003315,5]
[361995116,1747927850290,-349.72881437,0.0003315,5]
[361995118,1747927850299,-156.89748642,0.0003315,5]
[361995120,1747927850310,-352.72799642,0.0003315,5]
[361995122,1747927850322,-374.08451716,0.0003315,5]
[361995124,1747927850332,-75.91548284,0.0003315,5]
[361995126,1747927850344,-344.08451716,0.0003315,5]
[361995128,1747927850353,-420.0,0.0003315,5]
[361995130,1747927850363,-420.0,0.0003315,5]
[361995132,1747927850372,-405.22326917,0.0003315,5]
[361995135,1747927850383,-14.77673083,0.0003315,5]
[361995137,1747927850392,-420.0,0.0003315,5]
[361995138,1747927850402,-420.0,0.0003315,5]
[361995140,1747927850411,-617.18,0.0003315,5]
[361995142,1747927850421,-507.9,0.0003315,5]
[361995144,1747927850430,-420.0,0.0003315,5]
[361995146,1747927850439,-420.0,0.0003315,5]
[361995148,1747927850448,-83.18326945,0.0003315,5]
[361995173,1747927850740,-484.89673055,0.0003315,5]
[361995175,1747927850749,-420.0,0.0003315,5]
[361995177,1747927850759,-806.24,0.0003315,5]
[361995180,1747927850781,-428.91,0.0003315,5]
[361995182,1747927850795,-420.0,0.0003315,5]
[361995184,1747927850807,-997.95,0.0003315,5]
[361995186,1747927850817,-466.29,0.0003315,5]
[361995188,1747927850828,-420.0,0.0003315,5]
[361995190,1747927850839,-422.91,0.0003315,5]
[361995192,1747927850849,-420.0,0.0003315,5]
[361995195,1747927850859,-655.31,0.0003315,5]
[361995197,1747927850870,-450.17,0.0003315,5]
[361995199,1747927850880,-420.0,0.0003315,5]
[361995201,1747927850891,-510.7,0.0003315,5]
[361995203,1747927850900,-722.63,0.0003315,5]
[361995205,1747927850911,-420.0,0.0003315,5]
[361995207,1747927850921,-763.84,0.0003315,5]
[361995209,1747927850931,-505.46,0.0003315,5]
[361995211,1747927850941,-297.75046055,0.0003315,5]
[361995213,1747927850951,-420.0,0.0003315,5]
[361995215,1747927850961,-500.0,0.0003315,5]
[361995217,1747927850972,-651.95,0.0003315,5]
[361995219,1747927850982,-748.03,0.0003315,5]
[361995220,1747927850992,-1366.45,0.0003315,5]
[361995221,1747927851002,-758.08,0.0003315,5]
[361995222,1747927851011,-420.0,0.0003315,5]
[361995223,1747927851021,-420.0,0.0003315,5]
[361995224,1747927851031,-420.0,0.0003315,5]
[361995225,1747927851041,-623.11,0.0003315,5]
[361995226,1747927851052,-317.8228089,0.0003315,5]
[361995227,1747927851067,-311.8571911,0.0003315,5]
[361995228,1747927851076,-420.0,0.0003315,5]
[361995229,1747927851086,-420.0,0.0003315,5]
[361995230,1747927851097,-836.2,0.0003315,5]
[361995231,1747927851108,-579.25,0.0003315,5]
[361995232,1747927851118,-778.4,0.0003315,5]
[361995233,1747927851130,-420.0,0.0003315,5]
[361995234,1747927851140,-420.0,0.0003315,5]
[361995235,1747927851150,-543.6,0.0003315,5]
[361995236,1747927851160,-420.0,0.0003315,5]
[361995237,1747927851170,-530.24,0.0003315,5]
[361995238,1747927851180,-550.97,0.0003315,5]
[361995239,1747927851190,-420.0,0.0003315,5]
[361995240,1747927851200,-420.0,0.0003315,5]
[361995241,1747927851210,-420.0,0.0003315,10]
[361995242,1747927851222,-589.57,0.0003315,5]
[361995243,1747927851231,-891.98,0.0003315,5]
[361995244,1747927851241,-1391.69,0.0003315,5]
[361995245,1747927851251,-757.33,0.0003315,5]
[361995246,1747927851262,-502.54,0.0003315,5]
[361995247,1747927851272,-735.39,0.0003315,5]
[361995248,1747927851282,-632.77,0.0003315,5]
[361995249,1747927851292,-596.47,0.0003315,5]
[361995250,1747927851303,-420.0,0.0003315,5]
[361995251,1747927851312,-420.0,0.0003315,5]
[361995252,1747927851322,-152.959474,0.0003315,5]
[361995253,1747927851332,-666.59,0.0003315,5]
[361995254,1747927851342,-420.0,0.0003315,5]
[361995255,1747927851351,-511.84,0.0003315,5]
[361995256,1747927851361,-420.0,0.0003315,5]
[361995257,1747927851371,-420.0,0.0003315,5]
[361995258,1747927851380,-616.11,0.0003315,5]
[361995259,1747927851390,-420.0,0.0003315,5]
[361995260,1747927851400,-663.74,0.0003315,5]
[361995261,1747927851411,-570.56,0.0003315,5]
[361995262,1747927851422,-420.0,0.0003315,5]
[361995263,1747927851434,-768.91,0.0003315,5]
[361995264,1747927851444,-577.87,0.0003315,5]
[361995265,1747927851456,-908.04,0.0003315,5]
[361995266,1747927851471,-468.13,0.0003315,5]
[361995267,1747927851483,-157.505334,0.0003315,5]
[361995268,1747927851494,-789.54,0.0003315,5]
[361995269,1747927851504,-420.0,0.0003315,5]
[361995270,1747927851514,-420.0,0.0003315,5]
[361995271,1747927851526,-826.57,0.0003315,5]
[361995272,1747927851537,-835.41,0.0003315,5]
[361995273,1747927851547,-420.0,0.0003315,5]
[361995274,1747927851558,-611.09,0.0003315,5]
[361995275,1747927851567,-420.0,0.0003315,5]
[361995276,1747927851577,-1590.58,0.0003315,5]
[361995277,1747927851587,-542.71,0.0003315,5]
[361995278,1747927851597,-524.78,0.0003315,5]
[361995279,1747927851607,-420.0,0.0003315,5]
[361995280,1747927851618,-420.0,0.0003315,5]
[361995281,1747927851627,-420.0,0.0003315,5]
[361995282,1747927851636,-420.0,0.0003315,5]
[361995283,1747927851646,-420.0,0.0003315,5]
[361995284,1747927851655,-420.0,0.0003315,5]
[361995285,1747927851665,-420.0,0.0003315,5]
[361995286,1747927851675,-546.4,0.0003315,5]
[361995287,1747927851685,-684.23,0.0003315,5]
[361995288,1747927851694,-420.0,0.0003315,5]
[361995289,1747927851705,-420.0,0.0003315,5]
[361995290,1747927851715,-420.0,0.0003315,5]
[361995291,1747927851729,-669.66,0.0003315,5]
[361995292,1747927851740,-524.43091744,0.0003315,5]
[361995293,1747927851749,-660.03,0.0003315,5]
[361995294,1747927851761,-444.86,0.0003315,5]
[361995295,1747927851771,-420.0,0.0003315,5]
[361995296,1747927851781,-420.0,0.0003315,5]
[361995297,1747927851792,-548.64,0.0003315,5]
[361995298,1747927851803,-420.0,0.0003315,5]
[361995299,1747927851814,-420.0,0.0003315,5]
[361995300,1747927851824,-475.39,0.0003315,5]
[361995301,1747927851834,-420.0,0.0003315,5]
[361995302,1747927851844,-420.0,0.0003315,5]
[361995303,1747927851854,-491.74,0.0003315,5]
[361995304,1747927851866,-643.53,0.0003315,5]
[361995305,1747927851876,-1281.74,0.0003315,5]
[361995306,1747927851886,-420.0,0.0003315,5]
[361995307,1747927851897,-420.0,0.0003315,5]
[361995308,1747927851909,-581.84,0.0003315,5]
[361995309,1747927851919,-420.0,0.0003315,5]
[361995310,1747927851929,-545.1,0.0003315,5]
[361995311,1747927851940,-399.28967683,0.0003315,5]
[361995312,1747927851949,-519.8,0.0003315,5]
[361995313,1747927851960,-563.44,0.0003315,5]
[361995314,1747927851971,-590.36,0.0003315,5]
[361995315,1747927851981,-420.0,0.0003315,5]
[361995316,1747927851990,-420.0,0.0003315,5]
[361995317,1747927852001,-499.65,0.0003315,5]
[361995318,1747927852011,-420.0,0.0003315,5]
[361995319,1747927852021,-420.0,0.0003315,5]
[361995320,1747927852031,-461.23,0.0003315,5]
[361995321,1747927852041,-420.0,0.0003315,5]
[361995322,1747927852051,-477.68,0.0003315,5]
[361995323,1747927852061,-717.24,0.0003315,5]
[361995324,1747927852071,-420.0,0.0003315,5]
[361995325,1747927852081,-423.35,0.0003315,5]
[361995326,1747927852090,-420.0,0.0003315,5]
[361995327,1747927852099,-420.0,0.0003315,5]
[361995328,1747927852109,-584.41,0.0003315,5]
[361995329,1747927852118,-285.39133031,0.0003315,5]
[361995330,1747927852137,-134.60866969,0.0003315,5]
[361995331,1747927852146,-626.43,0.0003315,5]
[361995332,1747927852157,-1009.48,0.0003315,5]
[361995333,1747927852167,-420.0,0.0003315,5]
[361995334,1747927852178,-420.0,0.0003315,5]
[361995335,1747927852188,-420.0,0.0003315,5]
[361995336,1747927852198,-420.0,0.0003315,5]
[361995337,1747927852209,-420.0,0.0003315,5]
[361995338,1747927852221,-604.29,0.0003315,5]
[361995339,1747927852231,-420.0,0.0003315,5]
[361995340,1747927852241,-420.0,0.0003315,5]
[361995341,1747927852251,-971.89,0.0003315,5]
[361995342,1747927852261,-538.13,0.0003315,5]
[361995343,1747927852271,-420.0,0.0003315,5]
[361995344,1747927852281,-420.0,0.0003315,5]
[361995345,1747927852292,-526.24,0.0003315,5]
[361995346,1747927852302,-603.22,0.0003315,5]
[361995347,1747927852312,-420.0,0.0003315,5]
[361995348,1747927852322,-920.93,0.0003315,5]
[361995349,1747927852332,-420.0,0.0003315,5]
[361995350,1747927852342,-420.0,0.0003315,5]
[361995351,1747927852351,-420.0,0.0003315,5]
[361995352,1747927852468,-420.0,0.0003315,5]
[361995353,1747927852479,-468.22,0.0003315,5]
[361995354,1747927852489,-894.26,0.0003315,5]
[361995355,1747927852498,-300.0,0.0003315,5]
[361995356,1747927852507,-420.0,0.0003315,5]
[361995357,1747927852516,-420.0,0.0003315,5]
[361995358,1747927852526,-420.0,0.0003315,5]
[361995359,1747927852536,-420.0,0.0003315,5]
[361995360,1747927852545,-420.0,0.0003315,5]
[361995361,1747927852554,-420.0,0.0003315,5]
[361995362,1747927852563,-717.79,0.0003315,5]
[361995363,1747927852573,-689.57,0.0003315,5]
[361995364,1747927852582,-693.51,0.0003315,5]
[361995365,1747927852592,-750.46,0.0003315,5]
[361995366,1747927852601,-420.0,0.0003315,5]
[361995367,1747927852613,-842.5,0.0003315,5]
[361995368,1747927852622,-420.0,0.0003315,5]
[361995369,1747927852631,-420.0,0.0003315,5]
[361995370,1747927852641,-566.62,0.0003315,5]
[361995371,1747927852650,-420.0,0.0003315,5]
[361995372,1747927852660,-420.0,0.0003315,5]
[361995373,1747927852669,-353.78238605,0.0003315,5]
[361995374,1747927852682,-368.06761395,0.0003315,5]
[361995375,1747927852691,-420.0,0.0003315,5]
[361995376,1747927852700,-420.0,0.0003315,5]
[361995377,1747927852711,-669.3,0.0003315,5]
[361995378,1747927852725,-724.06890716,0.0003315,5]
[361995379,1747927852737,-197.60109284,0.0003315,5]
[361995380,1747927852746,-339.31009671,0.0003315,5]
[361995381,1747927852759,-467.96961399,0.0003315,5]
[361995382,1747927852775,-323.75863234,0.0003315,5]
[361995383,1747927852790,-1141.9527933,0.00032485,5]
[361995384,1747927852800,-71.85165696,0.0003315,5]
[361995385,1747927852809,-420.0,0.0003315,5]
[361995386,1747927852819,-420.0,0.0003315,5]
[361995387,1747927852829,-420.0,0.0003315,5]
[361995388,1747927852839,-420.0,0.0003315,5]
[361995389,1747927852848,-904.8,0.0003315,5]
[361995390,1747927852858,-369.53369743,0.0003315,5]
[361995391,1747927852867,-917.93,0.0003315,5]
[361995392,1747927852877,-857.15,0.0003315,5]
[361995393,1747927852886,-545.97,0.0003315,5]
[361995394,1747927852895,-796.66,0.0003315,5]
[361995395,1747927852905,-420.0,0.0003315,5]
[361995396,1747927852915,-420.0,0.0003315,5]
[361995397,1747927852924,-423.6,0.0003315,5]
[361995398,1747927852933,-917.94,0.0003315,5]
[361995399,1747927852942,-1180.69,0.0003315,5]
[361995400,1747927852952,-1276.75,0.0003315,5]
[361995401,1747927852961,-294.61444223,0.0003315,5]
[361995402,1747927852972,-868.06,0.0003315,5]
[361995403,1747927852982,-1292.69,0.0003315,5]
[361995404,1747927852991,-420.0,0.0003315,5]
[361995405,1747927853003,-420.0,0.0003315,5]
[361995406,1747927853012,-375.86731927,0.0003315,5]
[361995407,1747927853021,-1433.16,0.0003315,5]
[361995408,1747927853030,-420.0,0.0003315,5]
[361995409,1747927853040,-420.0,0.0003315,5]
[361995410,1747927853049,-20583.06,0.0003315,5]
[361995411,1747927853058,-420.0,0.0003315,5]
[361995412,1747927853068,-727.17,0.0003315,5]
[361995413,1747927853077,-527.38,0.0003315,5]
[361995414,1747927853087,-1596.93,0.0003315,5]
[361995415,1747927853096,-650.66,0.0003315,5]
[361995416,1747927853106,-420.0,0.0003315,5]
[361995417,1747927853116,-680.51,0.0003315,5]
[361995418,1747927853126,-723.16,0.0003315,5]
[361995419,1747927853136,-420.0,0.0003315,5]
[361995420,1747927853145,-420.0,0.0003315,5]
[361995421,1747927853155,-469.31529718,0.0003315,5]
[361995422,1747927853166,-420.0,0.0003315,5]
[361995423,1747927853175,-420.0,0.0003315,5]
[361995424,1747927853184,-1199.74,0.0003315,5]
[361995425,1747927853193,-2027.01,0.0003315,5]
[361995426,1747927853202,-420.0,0.0003315,5]
[361995427,1747927853212,-571.91,0.0003315,5]
[361995428,1747927853222,-420.0,0.0003315,5]
[361995429,1747927853231,-420.0,0.0003315,5]
[361995430,1747927853242,-588.34,0.0003315,5]
[361995431,1747927853251,-564.94,0.0003315,5]
[361995432,1747927853260,-975.74,0.0003315,5]
[361995433,1747927853270,-857.2,0.0003315,5]
[361995434,1747927853279,-844.85,0.0003315,5]
[361995435,1747927853288,-518.37,0.0003315,5]
[361995436,1747927853297,-1044.06,0.0003315,5]
[361995437,1747927853307,-750.76,0.0003315,5]
[361995438,1747927853316,-420.0,0.0003315,5]
[361995439,1747927853326,-420.0,0.0003315,5]
[361995440,1747927853335,-420.0,0.0003315,5]
[361995441,1747927853344,-420.0,0.0003315,5]
[361995442,1747927853354,-1047.89,0.0003315,5]
[361995443,1747927853363,-420.0,0.0003315,5]
[361995444,1747927853373,-453.42,0.0003315,5]
[361995445,1747927853382,-420.0,0.0003315,5]
[361995446,1747927853391,-658.5,0.0003315,5]
[361995447,1747927853401,-420.0,0.0003315,5]
[361995448,1747927853410,-444.96,0.0003315,5]
[361995449,1747927853419,-1773.03,0.0003315,5]
[361995450,1747927853429,-663.01,0.0003315,5]
[361995451,1747927853438,-420.0,0.0003315,5]
[361995452,1747927853448,-420.0,0.0003315,5]
[361995453,1747927853457,-420.0,0.0003315,5]
[361995454,1747927853467,-420.0,0.0003315,5]
[361995455,1747927853478,-1031.04,0.0003315,5]
[361995456,1747927853487,-420.0,0.0003315,5]
[361995457,1747927853497,-592.92,0.0003315,5]
[361995458,1747927853506,-420.0,0.0003315,5]
[361995459,1747927853515,-2987.85,0.0003315,5]
[361995460,1747927853524,-420.0,0.0003315,5]
[361995461,1747927853533,-1111.13,0.0003315,5]
[361995462,1747927853542,-420.0,0.0003315,5]
[361995463,1747927853551,-1203.04,0.0003315,5]
[361995464,1747927853561,-792.82,0.0003315,5]
[361995465,1747927853570,-864.37,0.0003315,5]
[361995466,1747927853579,-420.0,0.0003315,5]
[361995467,1747927853588,-420.0,0.0003315,5]
[361995468,1747927853598,-1321.92,0.0003315,5]
[361995469,1747927853607,-420.0,0.0003315,5]
[361995470,1747927853616,-420.0,0.0003315,5]
[361995471,1747927853625,-116.41226993,0.0003315,5]
[361995472,1747927853638,-320.2207373,0.0003315,5]
[361995474,1747928079113,150.0,0.000125,5]
[361995483,1747928703953,10000.0,0.000274,120]
[361995484,1747928720786,9980.0,0.000274,120]
[361995485,1747928741138,-299.81,0.00013699,2]
[361995486,1747928741163,-200.0,0.00015068,2]
[361995487,1747928741188,-299.81,0.00020187,2]
[361995488,1747928741213,-299.81,0.00026676,2]
[361995489,1747928741238,-417.05010299,0.00028,2]
[361995490,1747928746090,-82.94989701,0.00028,2]
[361995491,1747928746113,-631.64219453,0.00029602,2]
[361995493,1747928771349,10000.0,0.000274,120]
[361995494,1747928790137,10000.0,0.000274,120]
[361995495,1747928805778,10000.0,0.000274,120]
[361995496,1747928838111,-200.0,0.000231,2]
[361995497,1747928838135,-200.0,0.0002541,117]
[361995498,1747928838160,-162.47780547,0.00029602,2]
[361995499,1747928838183,-158.13823261,0.00031128,2]
[361995512,1747929032208,-1042.513045,0.00030414,2]
[361995513,1747929032218,-204.0,0.00030567,2]
[361995514,1747929032227,-238.73,0.00031255,2]
[361995515,1747929032237,-1000.0,0.00031285,2]
[361995516,1747929032247,-168.89,0.00031313,2]
[361995517,1747929032256,-265.18,0.00031404,2]
[361995518,1747929032268,-250.0,0.00031424,2]
[361995519,1747929032278,-849.66,0.00031431,2]
[361995520,1747929032288,-400.0,0.00031599,2]
[361995521,1747929032298,-622.73907128,0.000316,2]
[361995522,1747929032309,-1100.93473237,0.000316,2]
[361995523,1747929032527,-259.74,0.000316,2]
[361995524,1747929032540,-3016.58619635,0.000316,2]
[361995525,1747929032550,-5000.0,0.000316,7]
[361995526,1747929032559,-150.0,0.00031692,2]
[361995527,1747929032569,-887.73769133,0.00031699,30]
[361995528,1747929032579,-152.51,0.00031713,2]
[361995529,1747929032588,-887.73769133,0.00031808,30]
[361995530,1747929032598,-200.0,0.0003183,2]
[361995531,1747929032608,-207.4,0.00031841,2]
[361995532,1747929032617,-300.0,0.0003186,2]
[361995533,1747929032627,-728.04783064,0.00031861,2]
[361995534,1747929032650,-271.95216936,0.00031861,2]
[361995535,1747929032660,-794.12,0.00031866,2]
[361995536,1747929032670,-1199.20597015,0.00031874,2]
[361995537,1747929032679,-668.65185757,0.00031874,2]
[361995538,1747929032688,-500.0,0.00031874,2]
[361995539,1747929032698,-500.0,0.00031874,2]
[361995540,1747929032707,-500.0,0.00031874,2]
[361995541,1747929032717,-668.65185757,0.00031874,2]
[361995542,1747929032727,-99.00414535,0.00031874,2]
[361995543,1747929032738,-386.3735601,0.00031874,2]
[361995544,1747929032750,-14.62229455,0.00031874,2]
[361995545,1747929032760,-392.59101807,0.00031874,2]
[361995546,1747929032777,-107.40898193,0.00031874,2]
[361995547,1747929032787,-190.94574553,0.00031874,2]
[361996070,1747929038195,-400.0,0.00031599,3]
[361996072,1747929038206,-178.05425447,0.00031874,2]
[361996074,1747929038216,-151.0,0.00031874,2]
[361996076,1747929038225,-1459.76466868,0.00031892,2]
[361996078,1747929038235,-151.74,0.00031892,2]
[361996080,1747929038245,-17961.44107685,0.00031893,2]
[361996082,1747929038257,-5938.55892315,0.00031893,2]
[361996084,1747929038267,-216.28324434,0.000319,25]
[361996086,1747929038277,-443.13,0.00031933,2]
[361996088,1747929038286,-887.73769133,0.00031945,30]
[361996090,1747929038296,-1490.88164134,0.00031953,30]
[361996092,1747929038306,-150.0,0.00032055,2]
[361996094,1747929038315,-170.12,0.00032055,2]
[361996096,1747929038324,-1159.07,0.00032055,2]
[361996098,1747929038334,-151.6,0.00032078,2]
[361996100,1747929038344,-448.32,0.00032078,2]
[361996102,1747929038354,-1159.07,0.00032078,2]
[361996104,1747929038363,-303.36,0.00032078,2]
[361996106,1747929038373,-448.74,0.00032078,2]
[361996108,1747929038382,-150.27,0.00032078,2]
[361996110,1747929038391,-150.0,0.00032078,2]
[361996112,1747929038401,-1159.07,0.00032078,2]
[361996114,1747929038411,-307.13,0.00032078,2]
[361996116,1747929038420,-887.73769133,0.00032082,30]
[361996119,1747929038430,-250.0,0.00032165,2]
[361996121,1747929038444,-887.73769133,0.00032192,30]
[361996123,1747929038453,-216.28324406,0.00032279,26]
[361996125,1747929038463,-887.73769133,0.00032329,30]
[361996127,1747929038473,-1000.0,0.00032377,2]
[361996129,1747929038482,-369.74719043,0.00032422,2]
[361996131,1747929038492,-887.73769133,0.00032466,30]
[361996133,1747929038501,-1043.311683,0.00032485,5]
[361996135,1747929038511,-1051.29350561,0.00032487,5]
[361996136,1747929038520,-1000.42348089,0.00032487,5]
[361996138,1747929038530,-1147.75940488,0.00032487,5]
[361996140,1747929038540,-1095.68042861,0.00032487,5]
[361996142,1747929038549,-1135.54412202,0.00032487,5]
[361996145,1747929038559,-887.73769133,0.00032575,30]
[361996147,1747929038569,-216.28324406,0.00032659,27]
[361996149,1747929038579,-374.821356,0.00032687,4]
[361996151,1747929038589,-887.73769133,0.00032712,30]
[361996153,1747929038598,-11848.96872248,0.00032766,2]
[361996155,1747929038607,-1000.0,0.00032776,2]
[361996157,1747929038617,-3686.5002,0.00032776,2]
[361996159,1747929038628,-270.8734,0.00032776,2]
[361996161,1747929038638,-7364.21867535,0.00032776,2]
[361996163,1747929038647,-1172.00265823,0.00032776,2]
[361996165,1747929038657,-3551.46226,0.0003282,2]
[361996167,1747929038667,-887.73769133,0.00032822,30]
[361996169,1747929038677,-684.63,0.00032866,2]
[361996171,1747929038688,-500.0,0.00032875,2]